bitfinex/quotes_ETHUSD_20250430
["timestamp","ask_amount","ask_price","bid_price","bid_amount"]
[1746020585141,2.43749052,1757.2,1756.1,4.82924916]
[1746020585482,2.43749052,1757.2,1756.4,5.83964559]
[1746020585676,2.43749052,1757.2,1756.1,1.5044]
[1746020585677,8.231,1757.1,1756.2,2.82932686]
[1746020585892,8.231,1757.1,1756.1,1.93778957]
[1746020586036,10.66849052,1757.2,1756.5,1.657]
[1746020586431,2.43749052,1757.2,1756.7,3.0]
[1746020586684,2.43749052,1757.2,1756.5,1.657]
[1746020587239,2.43749052,1757.2,1756.6,3.0]
[1746020587947,2.43749052,1757.2,1756.9,1.5348]
[1746020588146,2.43749052,1757.2,1756.9,1.95454994]
[1746020588360,2.43749052,1757.2,1757.1,3.0]
[1746020588742,2.43749052,1757.2,1756.9,1.5348]
[1746020589071,2.43749052,1757.2,1756.6,1.97007525]
[1746020589372,2.43749052,1757.2,1756.8,3.0]
[1746020590343,2.43749052,1757.2,1756.6,1.97007525]
[1746020590859,2.43749052,1757.2,1756.9,3.0]
[1746020592256,2.43749052,1757.2,1757.0,1.61]
[1746020592849,2.43749052,1757.2,1757.1,8.84769452]
[1746020593173,1.5865,1758.1,1757.2,3.0]
[1746020593476,18.817,1758.7,1758.0,3.0]
[1746020593781,1.5531,1758.8,1758.0,3.0]
[1746020594009,1.5531,1758.8,1757.4,1.5592]
[1746020594222,1.5531,1758.6,1757.1,3.43309027]
[1746020594436,1.634,1758.4,1757.0,1.5592]
[1746020594623,1.634,1758.2,1756.7,1.5187]
[1746020594914,1.7372943,1758.1,1756.7,1.5187]
[1746020595119,0.1032943,1758.0,1756.7,4.5187]
[1746020595274,0.1032943,1758.0,1757.0,3.0]
[1746020595474,14.253,1757.9,1757.0,3.0]
[1746020595726,0.1032943,1758.0,1757.0,3.0]
[1746020595931,0.1032943,1757.9,1757.0,3.0]
[1746020596421,0.1032943,1757.9,1756.9,3.0]
[1746020596613,0.1032943,1757.9,1757.2,3.0]
[1746020596812,14.251,1757.8,1757.0,3.0]
[1746020597016,7.978,1758.3,1757.6,3.0]
[1746020597212,7.978,1758.3,1757.1,1.5612]
[1746020597213,14.249,1758.2,1757.3,3.0]
[1746020597416,7.978,1758.3,1757.3,3.0]
[1746020597736,7.978,1758.3,1757.1,4.5612]
[1746020597737,1.6267,1758.1,1757.1,4.5612]
[1746020598237,14.34671761,1758.0,1757.1,1.5612]
[1746020598407,14.34671761,1758.0,1756.7,1.5766]
[1746020598408,1.75871761,1757.9,1756.7,1.5766]
[1746020598608,0.09472287,1757.8,1756.7,1.5766]
[1746020598796,7.978,1757.7,1756.7,1.5766]
[1746020598990,7.978,1757.7,1756.7,4.5766]
[1746020599194,7.978,1757.7,1756.7,1.5766]
[1746020599406,7.978,1757.7,1756.7,7.39820383]
[1746020600501,7.978,1757.7,1756.7,7.82363809]
[1746020601400,7.978,1757.7,1756.7,2.00203426]
[1746020601944,0.09472287,1757.8,1756.7,5.00203426]
[1746020602118,7.728,1757.6,1756.7,5.00203426]
[1746020603238,7.82272287,1757.8,1756.7,10.84972878]
[1746020603401,7.82272287,1757.8,1756.8,3.0]
[1746020603936,7.82272287,1757.8,1757.0,8.84769452]
[1746020604447,1.6558,1758.2,1757.6,8.84769452]
[1746020604649,1.6558,1758.7,1757.9,8.84769452]
[1746020604813,1.6558,1758.7,1757.8,1.5031]
[1746020605228,21.975,1758.6,1757.7,8.84769452]
[1746020605838,7.728,1758.6,1757.6,3.0]
[1746020606145,1.7214,1758.1,1756.5,2.83694973]
[1746020606319,1.5214,1757.8,1756.5,2.83694973]
[1746020606520,1.12509141,1757.7,1756.6,5.85280716]
[1746020606772,1.5214,1757.8,1756.8,3.0]
[1746020607253,1.5214,1757.8,1757.0,8.84769452]
[1746020607453,1.5214,1757.8,1757.0,10.50529452]
[1746020608215,1.5214,1757.8,1757.1,3.0]
[1746020608413,1.5214,1757.8,1757.0,10.50529452]
[1746020609724,1.5214,1757.8,1757.0,1.6576]
[1746020610614,1.5214,1757.8,1757.1,8.84769452]
[1746020611628,1.5214,1758.1,1757.4,8.84769452]
[1746020611858,7.728,1758.8,1757.7,8.84769452]
[1746020612356,1.5214,1758.7,1757.7,8.84769452]
[1746020612530,1.5214,1758.6,1757.7,8.84769452]
[1746020615649,1.5214,1758.6,1757.8,3.0]
[1746020616063,1.5214,1758.6,1758.0,8.84769452]
[1746020616272,1.5214,1758.6,1758.0,10.38019452]
[1746020616515,1.6455,1758.9,1758.0,10.38019452]
[1746020616780,1.6455,1758.9,1758.0,11.41821397]
[1746020617080,1.6455,1758.9,1758.0,10.38019452]
[1746020617393,14.33971761,1758.8,1757.4,36.91719452]
[1746020617545,1.74021761,1758.7,1757.7,8.84769452]
[1746020617749,1.74021761,1758.7,1757.9,1.5325]
[1746020617958,1.74021761,1758.7,1757.9,1.98575]
[1746020618148,1.74021761,1758.7,1757.9,1.5325]
[1746020619343,14.246,1758.6,1757.6,1.96018612]
[1746020619543,7.726,1758.5,1757.6,1.96018612]
[1746020619850,1.5427,1758.4,1757.6,1.5325]
[1746020620683,1.5427,1758.4,1757.7,8.84769452]
[1746020621253,0.09472287,1758.5,1757.6,1.95321971]
[1746020621604,1.532,1758.4,1757.6,1.95321971]
[1746020622447,1.532,1758.4,1757.4,35.38369452]
[1746020622882,1.532,1758.4,1757.4,27.65769452]
[1746020623258,1.532,1758.4,1757.5,3.0]
[1746020623871,1.532,1758.4,1757.7,8.84769452]
[1746020624047,1.532,1758.4,1757.8,1.5145]
[1746020624246,1.5881,1758.7,1757.8,4.5145]
[1746020624483,1.5881,1758.7,1758.0,8.84769452]
[1746020625371,1.5881,1758.7,1758.0,9.73246397]
[1746020625965,1.5881,1758.7,1758.1,3.0]
[1746020626486,1.6104,1759.0,1758.1,3.0]
[1746020627049,1.6104,1759.0,1758.0,8.84769452]
[1746020627450,1.609,1758.8,1757.8,6.30027976]
[1746020627665,1.68668718,1758.8,1757.8,6.30027976]
[1746020628653,1.68668718,1758.8,1758.1,6.30027976]
[1746020629373,5.95129047,1759.1,1758.4,6.30027976]
[1746020629694,7.47269047,1759.1,1758.4,6.30027976]
[1746020630491,1.5214,1759.1,1758.4,6.30027976]
[1746020631891,14.241,1759.0,1758.2,6.30027976]
[1746020632226,1.5214,1759.1,1758.2,6.30027976]
[1746020632387,1.5214,1759.1,1758.2,6.73412025]
[1746020632720,1.5214,1759.1,1758.2,7.40753228]
[1746020633222,1.51799097,1759.1,1758.3,3.0]
[1746020633520,1.51799097,1759.1,1758.5,6.30027976]
[1746020633728,1.51799097,1759.1,1758.6,1.5194]
[1746020634288,1.51799097,1759.1,1758.5,6.30027976]
[1746020634831,1.51799097,1759.1,1757.8,6.30027976]
[1746020635000,34.13781428,1759.0,1757.8,6.30027976]
[1746020635199,7.56172287,1758.9,1757.6,0.41943755]
[1746020635409,8.55781428,1758.9,1757.5,6.30027976]
[1746020635605,0.09472287,1758.8,1757.5,6.30027976]
[1746020635804,0.09472287,1758.8,1757.5,7.08224774]
[1746020636143,0.09472287,1758.8,1757.8,6.30027976]
[1746020636144,1.6156,1758.7,1757.8,6.30027976]
[1746020636305,14.247,1758.6,1757.8,6.30027976]
[1746020636646,1.6156,1758.5,1757.8,6.30027976]
[1746020636802,21.714,1758.4,1757.8,6.30027976]
[1746020637230,1.6156,1758.5,1757.8,6.30027976]
[1746020637417,14.246,1758.4,1757.8,6.30027976]
[1746020639087,9.0826,1758.5,1757.8,6.30027976]
[1746020639411,9.0826,1758.5,1758.1,6.30027976]
[1746020639711,0.09472807,1758.6,1758.1,6.30027976]
[1746020641449,1.5222,1759.1,1758.4,6.30027976]
[1746020641629,1.5222,1759.1,1758.7,6.30027976]
[1746020641833,1.9314302,1759.4,1758.7,6.30027976]
[1746020642006,1.9314302,1759.4,1759.0,6.30027976]
[1746020642341,0.4092302,1759.4,1759.0,6.30027976]
[1746020642703,0.4092302,1759.4,1759.3,6.30027976]
[1746020643147,10.1356902,1759.9,1759.4,1.6337]
[1746020643346,10.1356902,1759.9,1759.8,6.30027976]
[1746020643527,10.1356902,1759.9,1759.8,9.72320148]
[1746020643844,10.1356902,1759.9,1759.8,11.25780148]
[1746020644058,10.1356902,1759.9,1759.8,9.72320148]
[1746020644456,10.1356902,1759.9,1759.8,11.25440148]
[1746020644662,10.1356902,1759.9,1759.8,6.30027976]
[1746020645216,10.1356902,1759.9,1759.8,9.30027976]
[1746020645672,10.1356902,1759.9,1759.8,9.71760185]
[1746020645873,20.0,1760.0,1759.9,3.0]
[1746020646525,20.0,1760.0,1759.8,6.71760185]
[1746020646751,20.0,1760.0,1759.8,6.30027976]
[1746020646991,20.0,1760.0,1759.5,6.30027976]
[1746020646992,21.6158,1760.0,1759.5,6.30027976]
[1746020647350,20.0,1760.0,1759.5,6.30027976]
[1746020647655,20.0,1760.0,1759.8,6.30027976]
[1746020649778,20.0,1760.0,1759.9,3.0]
[1746020650362,11.99092647,1761.1,1760.0,0.55]
[1746020650668,7.219,1761.0,1760.5,6.30027976]
[1746020651405,10.42502647,1761.1,1760.8,6.30027976]
[1746020651695,0.4092302,1761.2,1760.8,6.30027976]
[1746020651903,0.4092302,1761.2,1760.5,0.42912646]
[1746020652056,1.6527,1761.1,1759.8,1.612]
[1746020652255,1.6527,1760.9,1759.9,6.30027976]
[1746020652477,1.6527,1760.9,1759.9,6.7270153]
[1746020652478,1.74741761,1760.9,1759.9,6.7270153]
[1746020653302,1.74741761,1760.9,1759.5,1.5374]
[1746020653303,14.229,1760.8,1759.5,1.5374]
[1746020653514,1.69641761,1760.7,1759.8,6.30027976]
[1746020653659,14.23,1760.6,1759.8,6.30027976]
[1746020653859,7.217,1760.5,1759.8,6.30027976]
[1746020654091,7.217,1760.5,1760.1,6.30027976]
[1746020654295,1.69641761,1760.7,1760.1,6.30027976]
[1746020654493,8.7755,1761.0,1760.4,6.30027976]
[1746020654696,0.4092302,1761.2,1760.7,6.30027976]
[1746020655082,0.4092302,1761.2,1760.2,1.6159]
[1746020655083,1.6179,1761.1,1760.2,1.6159]
[1746020655287,1.6179,1761.1,1759.5,7.217]
[1746020655288,1.6179,1761.1,1760.1,6.30027976]
[1746020657094,1.6179,1761.1,1760.5,3.0]
[1746020657296,15.8419,1761.1,1760.4,6.30027976]
[1746020657597,23.0589,1761.1,1760.4,6.30027976]
[1746020658160,23.0589,1761.1,1760.1,6.30027976]
[1746020658359,8.8349,1761.1,1760.1,6.30027976]
[1746020658802,1.57,1761.0,1759.9,7.91617976]
[1746020659105,1.57,1760.9,1759.9,7.91617976]
[1746020659258,1.57,1760.9,1759.9,6.30027976]
[1746020659895,1.57,1760.9,1760.0,3.0]
[1746020660096,14.229,1760.8,1760.0,3.0]
[1746020660413,1.6067,1760.7,1759.9,6.30027976]
[1746020660716,8.8227,1760.7,1759.9,6.30027976]
[1746020661011,1.599,1761.1,1760.6,6.30027976]
[1746020661312,1.599,1761.1,1760.0,4.5301]
[1746020661313,14.225,1761.0,1760.3,6.30027976]
[1746020661602,1.599,1760.9,1760.0,1.5301]
[1746020661900,7.215,1760.8,1759.9,6.30027976]
[1746020662102,7.215,1760.8,1760.0,3.0]
[1746020662268,7.215,1760.8,1760.2,6.30027976]
[1746020662599,21.442,1760.8,1760.2,6.30027976]
[1746020663101,7.215,1760.8,1760.2,6.30027976]
[1746020663264,1.599,1760.9,1760.3,3.0]
[1746020663460,0.09471761,1761.1,1760.5,6.30027976]
[1746020663664,9.2627302,1761.2,1760.5,6.30027976]
[1746020663962,2.0477302,1761.2,1760.8,6.30027976]
[1746020664178,0.4092302,1761.2,1761.1,6.30027976]
[1746020665383,0.4092302,1761.2,1761.1,9.30027976]
[1746020665990,1.6068,1762.1,1761.3,1.5923]
[1746020666212,1.6068,1762.1,1761.7,6.30027976]
[1746020666380,7.215,1762.4,1761.7,6.30027976]
[1746020667168,1.6068,1762.6,1762.0,6.30027976]
[1746020667393,1.6068,1762.6,1762.3,6.30027976]
[1746020667593,1.6068,1762.6,1761.9,1.5959]
[1746020667594,1.6068,1762.6,1762.2,6.30027976]
[1746020668191,10.75903297,1762.9,1762.5,6.30027976]
[1746020668396,10.75903297,1762.9,1762.8,9.30027976]
[1746020668907,10.75903297,1762.9,1762.8,6.30027976]
[1746020669283,0.4092302,1762.9,1762.8,9.30027976]
[1746020669608,0.4092302,1762.9,1762.8,11.78987522]
[1746020669991,0.4092302,1762.9,1762.8,12.33987522]
[1746020670186,10.34980277,1764.1,1763.0,1.5351]
[1746020670523,10.34980277,1764.1,1763.6,1.5351]
[1746020670708,10.34980277,1764.1,1763.4,8.78987522]
[1746020670887,14.201,1764.0,1763.2,3.0]
[1746020671085,10.34980277,1764.1,1763.1,1.5351]
[1746020672025,1.6431,1763.9,1763.1,1.5351]
[1746020673022,1.6041,1764.3,1763.1,1.5351]
[1746020673197,1.6041,1764.3,1763.3,0.55]
[1746020673396,1.6041,1764.3,1763.5,0.55]
[1746020673601,1.6041,1764.6,1763.7,0.55]
[1746020673820,1.6041,1764.6,1763.5,0.55]
[1746020673989,7.065,1764.5,1763.5,0.55]
[1746020674724,7.065,1764.5,1763.4,0.55]
[1746020674925,7.065,1764.5,1763.6,0.55]
[1746020675226,7.065,1764.4,1763.7,1.5293]
[1746020675542,8.7255,1764.4,1763.7,1.5293]
[1746020675689,8.7255,1764.4,1763.6,0.42063171]
[1746020675690,1.6605,1764.4,1763.6,0.42063171]
[1746020676006,21.264,1764.3,1763.4,1.5293]
[1746020676193,7.065,1764.3,1763.4,1.5293]
[1746020676628,7.063,1764.3,1763.5,0.55]
[1746020676868,1.6605,1764.4,1763.5,0.55]
[1746020676869,8.7235,1764.4,1763.5,0.55]
[1746020677072,2.0681302,1764.7,1763.6,1.5186]
[1746020677426,7.063,1764.6,1763.6,1.5186]
[1746020678183,1.6224,1764.4,1763.0,1.6039]
[1746020678381,1.7539754,1764.3,1763.0,1.6039]
[1746020678543,1.7539754,1764.2,1763.0,1.6039]
[1746020678743,0.1033754,1764.1,1763.0,1.6039]
[1746020678952,8.7136,1764.0,1763.0,1.6039]
[1746020679275,1.6618,1763.8,1762.5,1.5738]
[1746020679635,0.103214,1763.7,1762.5,1.5738]
[1746020679851,1.6618,1763.6,1762.5,1.5738]
[1746020680035,1.6618,1763.3,1762.2,1.5738]
[1746020680430,0.103214,1763.2,1762.2,1.5738]
[1746020681065,1.6421,1763.0,1761.9,1.5788]
[1746020681264,21.3771345,1762.9,1761.9,1.5788]
[1746020681468,1.6421,1762.8,1761.7,7.061]
[1746020681671,1.7452345,1762.8,1761.6,1.5788]
[1746020681974,7.062,1762.7,1761.7,0.86398]
[1746020682160,15.8571,1762.6,1761.3,1.5788]
[1746020682362,20.3981,1762.6,1761.3,1.5788]
[1746020682559,20.3981,1762.6,1761.3,2.00171326]
[1746020682936,0.1030558,1762.5,1761.3,2.00171326]
[1746020683136,1.5381,1762.4,1761.3,2.00171326]
[1746020683578,1.5381,1762.4,1761.4,0.05676949]
[1746020683750,7.062,1762.3,1761.3,2.05847916]
[1746020683946,7.062,1762.3,1761.4,3.55]
[1746020684164,7.062,1762.3,1761.4,4.10517133]
[1746020684584,7.062,1762.3,1761.4,3.55517133]
[1746020684787,7.062,1762.3,1761.5,0.55]
[1746020684999,1.5381,1762.4,1761.5,0.55]
[1746020685199,1.5381,1762.4,1760.9,1.6103]
[1746020685517,0.10297789,1762.3,1760.9,1.6103]
[1746020685715,5.2054,1762.2,1760.9,1.6103]
[1746020685872,1.75837789,1762.1,1760.9,1.6103]
[1746020686274,1.5025,1761.9,1760.9,1.6103]
[1746020686470,7.063,1761.8,1760.9,2.03777926]
[1746020687191,14.221,1761.7,1760.9,1.6103]
[1746020687377,7.063,1761.6,1760.9,1.6103]
[1746020687786,15.7235,1761.5,1760.6,1.5946]
[1746020687970,1.5025,1761.5,1760.6,1.5946]
[1746020688914,7.064,1761.4,1760.6,1.5946]
[1746020689086,1.5025,1761.5,1760.6,1.5946]
[1746020689087,7.064,1761.3,1760.6,1.5946]
[1746020689276,14.223,1761.2,1760.3,1.5049]
[1746020689471,7.064,1761.3,1760.3,1.5049]
[1746020689675,1.5025,1761.5,1760.4,0.05679878]
[1746020689878,7.064,1761.4,1760.5,1.5818]
[1746020690092,7.064,1761.4,1760.6,0.55]
[1746020691123,20.2904,1761.8,1760.7,1.5742]
[1746020691275,0.10297789,1762.0,1761.0,0.55]
[1746020691808,7.16897789,1762.0,1761.0,0.55]
[1746020692039,1.5091,1762.1,1761.2,0.55]
[1746020692341,1.614,1762.4,1761.4,0.55]
[1746020692547,7.066,1762.3,1761.4,0.55]
[1746020692839,7.066,1762.3,1761.5,1.5044]
[1746020693041,7.066,1762.5,1761.6,0.60675358]
[1746020693246,1.614,1762.7,1761.8,0.55]
[1746020693247,8.68,1762.7,1761.8,0.55]
[1746020693402,7.066,1762.6,1761.6,0.55]
[1746020693607,0.2,1763.4,1761.5,1.5044]
[1746020693608,8.68,1762.5,1761.5,1.5044]
[1746020693807,7.066,1762.4,1761.5,1.5044]
[1746020694251,7.066,1762.4,1761.6,0.55]
[1746020694455,7.066,1762.4,1761.5,1.5044]
[1746020694956,7.066,1762.4,1761.6,0.55]
[1746020695253,7.066,1762.4,1761.8,0.55]
[1746020695557,18.766,1762.8,1761.8,0.55]
[1746020695754,7.066,1762.7,1761.8,0.55]
[1746020696253,7.066,1762.7,1761.7,1.5348]
[1746020697004,3.0,1762.6,1761.7,1.5348]
[1746020697447,1.5838,1762.4,1761.7,1.5348]
[1746020697853,14.216,1762.3,1761.7,1.5348]
[1746020698026,7.065,1762.2,1761.7,1.5348]
[1746020698226,14.216,1762.1,1761.7,1.5348]
[1746020698547,14.215,1762.3,1761.7,1.5348]
[1746020698751,7.065,1762.5,1761.8,0.55]
[1746020699245,14.214,1762.4,1761.7,1.5348]
[1746020699659,14.214,1762.4,1761.4,1.5643]
[1746020699956,3.0,1762.4,1761.4,1.5643]
[1746020700342,3.0,1762.2,1761.4,1.5643]
[1746020700540,0.55,1761.9,1760.5,1.6602]
[1746020700742,4.5559,1761.7,1760.5,2.95399593]
[1746020701122,4.5559,1761.7,1760.6,3.0]
[1746020701323,4.5559,1761.7,1760.5,2.95399593]
[1746020701553,0.55,1761.4,1760.5,1.6602]
[1746020701741,7.065,1761.3,1760.5,1.6602]
[1746020702054,7.065,1761.3,1760.6,0.05680328]
[1746020702356,7.065,1761.3,1760.5,1.6602]
[1746020702357,14.224,1761.2,1760.5,1.6602]
[1746020702760,14.224,1761.2,1760.3,0.42553675]
[1746020702761,14.224,1761.2,1759.7,1.6365]
[1746020702963,5.234114,1761.1,1759.7,2.88201975]
[1746020703261,0.103214,1761.0,1759.7,1.6365]
[1746020703465,0.103214,1761.0,1759.7,4.6365]
[1746020703766,0.103214,1761.0,1759.6,3.75269745]
[1746020703767,0.103214,1761.0,1759.8,1.6295]
[1746020703967,6.872,1760.9,1759.8,1.6295]
[1746020704147,3.0,1760.8,1759.8,1.6295]
[1746020704322,17.3331345,1760.8,1759.8,1.6295]
[1746020704754,1.5728,1760.7,1759.8,1.6295]
[1746020705057,0.1031345,1760.7,1759.8,1.6863214]
[1746020705260,0.1031345,1760.7,1760.0,2.2156]
[1746020705564,6.872,1761.2,1760.1,1.6656]
[1746020706061,0.55,1760.9,1760.1,1.6656]
[1746020706223,0.55,1760.9,1759.7,1.547]
[1746020706723,6.873,1760.8,1759.7,1.547]
[1746020706977,3.55,1760.7,1759.7,1.547]
[1746020707481,5.1909,1761.0,1759.7,1.547]
[1746020707685,7.423,1760.9,1759.7,1.547]
[1746020707997,0.55,1760.7,1759.7,1.547]
[1746020708297,6.873,1760.8,1759.7,1.547]
[1746020708663,6.873,1760.7,1759.7,1.547]
[1746020709097,6.873,1760.7,1759.1,1.5224]
[1746020709098,1.5095,1760.5,1759.1,1.5224]
[1746020709298,0.55,1760.4,1759.1,1.5224]
[1746020710861,14.236,1760.3,1759.1,1.5224]
[1746020711066,12.0629,1760.2,1759.1,1.5224]
[1746020711394,0.55,1759.9,1759.1,1.5224]
[1746020711595,6.875,1759.8,1759.2,0.05684388]
[1746020711807,6.875,1759.8,1759.1,1.5224]
[1746020712316,6.877,1760.0,1759.2,0.05683673]
[1746020712461,6.877,1760.0,1759.3,1.6206]
[1746020712658,14.234,1759.9,1759.3,1.6206]
[1746020712862,6.877,1759.8,1759.3,1.6206]
[1746020713162,21.112,1759.9,1759.3,1.6206]
[1746020713805,0.55,1759.8,1759.3,1.6206]
[1746020714096,0.55,1759.6,1758.4,1.5473]
[1746020714431,0.55,1759.8,1758.5,4.5473]
[1746020714432,3.0,1759.8,1758.5,4.5473]
[1746020714603,0.55,1759.7,1758.6,1.5473]
[1746020715591,6.878,1760.0,1758.7,1.55885835]
[1746020715904,6.878,1759.9,1759.1,1.6026]
[1746020716124,14.236,1759.8,1759.1,1.6026]
[1746020716397,5.2104,1759.7,1758.5,1.6026]
[1746020716717,0.55,1759.3,1758.5,1.6026]
[1746020716891,0.55,1759.3,1757.5,5.8342895]
[1746020716892,3.0,1759.1,1757.7,1.5065]
[1746020717067,1.62,1759.0,1757.7,1.5065]
[1746020717262,0.55,1758.9,1757.7,4.5065]
[1746020717501,0.64574335,1758.9,1757.7,1.5065]
[1746020717676,0.09574335,1758.8,1757.7,1.80218058]
[1746020717873,7.171,1758.7,1757.7,1.80218058]
[1746020718085,0.09574335,1758.8,1757.7,1.85906582]
[1746020718298,7.171,1758.6,1757.7,1.80218058]
[1746020719079,0.09574335,1758.8,1757.7,4.63496553]
[1746020719276,0.09574335,1758.8,1757.9,1.6429]
[1746020719607,7.171,1759.0,1758.0,1.6429]
[1746020720283,15.7986,1758.9,1758.0,1.6429]
[1746020720479,7.171,1759.0,1758.0,1.6429]
[1746020721776,7.171,1759.0,1758.1,1.6639]
[1746020722104,7.171,1759.0,1758.2,4.49433263]
[1746020722476,7.171,1759.0,1758.2,1.6639]
[1746020722697,7.171,1759.0,1758.2,4.49433263]
[1746020722917,18.784,1759.2,1758.2,4.49433263]
[1746020723093,7.172,1759.1,1758.2,4.49433263]
[1746020723803,7.172,1759.1,1758.2,4.91686843]
[1746020724180,7.172,1759.1,1758.2,2.0864358]
[1746020724381,7.172,1759.1,1758.3,1.6517]
[1746020724689,7.172,1759.1,1758.6,1.6517]
[1746020725208,7.172,1759.1,1758.6,4.45304323]
[1746020725406,7.173,1759.5,1758.7,2.81258754]
[1746020726040,14.239,1759.4,1758.6,1.6517]
[1746020726249,1.6527,1759.3,1758.6,1.6517]
[1746020726430,14.242,1759.2,1758.6,4.45304323]
[1746020726831,14.242,1759.2,1758.7,2.81258754]
[1746020727231,7.173,1759.5,1758.6,1.6517]
[1746020727232,3.0,1759.3,1758.6,1.6517]
[1746020727533,14.243,1759.2,1758.7,2.81258754]
[1746020727737,14.243,1759.2,1758.6,1.6517]
[1746020728326,14.242,1759.4,1758.6,1.6517]
[1746020728531,14.242,1759.4,1758.7,2.81258754]
[1746020729311,6.932,1759.8,1758.8,4.382678]
[1746020730028,6.932,1759.8,1758.8,4.80536968]
[1746020730338,6.932,1759.7,1758.8,4.80536968]
[1746020730652,6.932,1759.7,1759.0,2.86890872]
[1746020730810,14.237,1759.6,1759.0,2.86890872]
[1746020731013,14.237,1759.6,1758.9,4.4405897]
[1746020731215,4.5082,1759.5,1758.9,4.4405897]
[1746020731449,4.5082,1759.5,1758.9,1.5453]
[1746020731450,14.33576307,1759.4,1758.9,1.5453]
[1746020731750,14.33576307,1759.4,1758.9,4.4405897]
[1746020731969,1.5315,1760.1,1759.2,4.48948376]
[1746020732251,14.235,1760.0,1759.3,2.8302771]
[1746020732456,21.167,1760.0,1759.3,2.8302771]
[1746020732658,0.09476307,1759.9,1759.3,2.8302771]
[1746020732818,14.235,1759.8,1759.3,2.8302771]
[1746020733226,14.235,1759.8,1759.5,2.84848019]
[1746020733426,0.09476307,1759.9,1759.6,4.52130445]
[1746020733642,6.931,1760.4,1759.7,2.89966047]
[1746020734141,14.232,1760.3,1759.7,2.89966047]
[1746020734663,14.232,1760.3,1759.6,1.6479]
[1746020734880,6.931,1760.4,1759.6,1.6479]
[1746020735041,18.796,1760.8,1759.6,1.6479]
[1746020735042,6.931,1760.5,1759.7,1.6357]
[1746020735365,6.931,1760.6,1759.8,1.6357]
[1746020735969,14.23,1760.5,1759.9,1.558]
[1746020736330,14.23,1760.5,1759.9,4.45127337]
[1746020736531,14.23,1760.5,1759.9,1.558]
[1746020737756,7.02571761,1760.6,1759.9,1.558]
[1746020738072,6.93,1761.1,1760.1,1.5141]
[1746020738275,6.93,1761.0,1760.1,1.5141]
[1746020739081,6.93,1761.0,1760.1,4.36012961]
[1746020739478,7.80850578,1761.2,1760.3,1.5438]
[1746020739783,6.929,1761.2,1760.3,1.5438]
[1746020740073,14.226,1761.1,1760.3,1.5438]
[1746020740650,14.32071761,1761.1,1760.3,1.5438]
[1746020740864,0.09471761,1761.1,1760.3,1.5438]
[1746020741058,0.09471761,1761.1,1760.3,6.929]
[1746020741259,6.929,1761.7,1760.5,1.5336]
[1746020741504,6.929,1761.7,1760.7,1.5336]
[1746020742161,6.927,1761.6,1760.9,1.5336]
[1746020742378,6.927,1761.7,1760.9,1.5336]
[1746020742781,6.927,1761.7,1761.0,0.05678262]
[1746020742987,6.927,1761.8,1761.1,1.592]
[1746020743564,14.219,1761.7,1761.1,1.592]
[1746020744458,1.5945,1761.5,1759.9,6.927]
[1746020744657,0.15150597,1761.4,1759.9,7.6197]
[1746020744858,7.02171761,1761.3,1760.0,0.05680345]
[1746020745058,0.05678836,1761.2,1760.0,0.05680345]
[1746020745294,0.05678836,1761.2,1760.0,0.60680345]
[1746020745508,0.05678836,1761.2,1760.0,0.55]
[1746020745786,0.05678836,1761.2,1760.1,0.60679568]
[1746020745994,0.05678836,1761.2,1760.1,0.55]
[1746020747063,0.05678836,1761.2,1760.2,0.05679947]
[1746020747757,0.05678836,1761.2,1760.3,1.5557]
[1746020748095,0.05678836,1761.6,1760.5,1.5557]
[1746020748282,0.05678836,1761.6,1760.6,4.5786]
[1746020748485,5.08846128,1761.7,1760.7,1.5786]
[1746020748663,0.09471761,1761.6,1760.7,1.5786]
[1746020749092,0.09471761,1761.6,1760.6,1.5584]
[1746020749300,0.09471761,1761.6,1760.9,0.55]
[1746020749486,6.686,1762.1,1761.0,1.5543]
[1746020749674,6.686,1762.0,1761.0,1.5543]
[1746020749873,6.686,1762.0,1761.0,1.83790631]
[1746020750264,6.686,1762.0,1761.0,1.5543]
[1746020750464,6.78071761,1762.0,1761.0,1.5543]
[1746020751105,6.78071761,1762.0,1761.0,1.83541257]
[1746020751404,6.78071761,1762.0,1760.7,3.55]
[1746020751405,19.86506529,1761.9,1760.2,1.6237]
[1746020751696,0.09471761,1761.8,1760.6,1.6237]
[1746020751901,0.09471761,1761.8,1761.0,1.6237]
[1746020752067,14.22,1761.7,1761.0,1.6237]
[1746020752265,20.905,1761.7,1761.0,1.6237]
[1746020753787,6.685,1761.7,1761.0,1.6237]
[1746020754100,6.685,1762.2,1761.4,1.5664]
[1746020754305,16.0,1762.4,1761.4,1.5664]
[1746020754485,6.685,1762.3,1761.4,1.5664]
[1746020754871,14.217,1762.2,1761.4,1.5664]
[1746020755200,6.685,1762.2,1761.4,1.5664]
[1746020755566,6.685,1762.6,1761.7,0.55]
[1746020755897,25.461,1762.7,1762.0,1.5269]
[1746020756497,18.776,1762.7,1762.0,1.5269]
[1746020756696,25.461,1762.7,1762.0,1.5269]
[1746020757500,6.685,1762.7,1762.0,1.5269]
[1746020758181,6.685,1762.7,1762.0,1.58364553]
[1746020758377,1.6098,1763.2,1762.1,0.55]
[1746020758571,3.0,1763.0,1762.2,1.615]
[1746020758771,6.7863754,1763.1,1762.2,1.615]
[1746020758984,6.7863754,1763.1,1762.4,2.165]
[1746020759274,14.209,1763.0,1762.4,1.615]